[Event "FIDE Grand Swiss 2023"]
[Site "Villa Marina, Douglas, Isle of Man"]
[Date "2023.10.25"]
[Round "1.1"]
[White "Saric, Ivan"]
[Black "Caruana, Fabiano"]
[Result "0-1"]
[WhiteElo "2647"]
[BlackElo "2786"]
[EventDate "2023.10.25"]
[ECO "B90"]
[PlyCount "60"]
[BlackFideId "2020009"]
[TimeControl "40/100 + 20/50 + 15 + 30s/move"]
[WhiteFideId "14508150"]
[ePGN "0.1;DGT LiveChess/2.2.5"]

1.e4 {[%clk 01:40:58]} 1...c5 {[%clk 01:40:54] [%emt 00:00:07]} 2.Nf3 {[%clk
01:41:23] [%emt 00:00:05]} 2...d6 {[%clk 01:41:20] [%emt 00:00:04]} 3.d4 {[%clk
01:39:31] [%emt 00:02:22]} 3...cxd4 {[%clk 01:41:27] [%emt 00:00:23]} 4.Nxd4 
{[%clk 01:39:43] [%emt 00:00:19]} 4...Nf6 {[%clk 01:41:51] [%emt 00:00:05]} 
5.Nc3 {[%clk 01:40:10] [%emt 00:00:03]} 5...a6 {[%clk 01:42:15] [%emt 00:00:06]} 
6.Bd3 {[%clk 01:39:04] [%emt 00:01:35]} 6...g6 {[%clk 01:41:56] [%emt 00:00:49]} 
7.f3 {[%clk 01:38:58] [%emt 00:00:36]} 7...Bg7 {[%clk 01:41:33] [%emt 00:00:54]} 
8.Be3 {[%clk 01:38:37] [%emt 00:00:51]} 8...Nbd7 {[%clk 01:40:45] [%emt
00:01:19]} 9.Qd2 {[%clk 01:36:37] [%emt 00:02:29]} 9...b5 {[%clk 01:30:33] [%emt
00:10:42]} 10.a4 {[%clk 01:34:45] [%emt 00:02:23]} 10...b4 {[%clk 01:27:52]
[%emt 00:03:10]} 11.Nce2 {[%clk 01:34:25] [%emt 00:00:49]} 11...d5 {[%clk
01:12:27] [%emt 00:15:56]} 12.Bh6 {[%clk 01:09:21] [%emt 00:25:34]} 12...Bxh6 
{[%clk 00:55:51] [%emt 00:17:06]} 13.Qxh6 {[%clk 01:09:25] [%emt 00:00:25]} 
13...dxe4 {[%clk 00:52:25] [%emt 00:03:57]} 14.Bxe4 {[%clk 01:07:45] [%emt
00:02:10]} 14...Nxe4 {[%clk 00:52:50] [%emt 00:00:04]} 15.fxe4 {[%clk 01:07:30]
[%emt 00:00:45]} 15...Qc7 {[%clk 00:51:16] [%emt 00:02:04]} 16.O-O {[%clk
01:02:52] [%emt 00:05:06]} 16...Nf6 {[%clk 00:40:43] [%emt 00:11:04]} 17.Rxf6 
{[%clk 00:56:56] [%emt 00:06:26]} 17...exf6 {[%clk 00:41:04] [%emt 00:00:09]} 
18.Qg7 {[%clk 00:57:19] [%emt 00:00:07]} 18...Rf8 {[%clk 00:41:30] [%emt
00:00:03]} 19.Qxf6 {[%clk 00:57:44] [%emt 00:00:05]} 19...Bb7 {[%clk 00:35:44]
[%emt 00:06:16]} 20.Nf4 {[%clk 00:54:54] [%emt 00:03:20]} 20...Qd8 {[%clk
00:31:55] [%emt 00:04:19]} 21.Qe5+ {[%clk 00:52:12] [%emt 00:03:12]} 21...Qe7 
{[%clk 00:29:57] [%emt 00:02:28]} 22.Qa5 {[%clk 00:52:37] [%emt 00:00:05]} 
22...Rc8 {[%clk 00:27:00] [%emt 00:03:27]} 23.Nd3 {[%clk 00:47:07] [%emt
00:06:01]} 23...f5 {[%clk 00:17:35] [%emt 00:09:56]} 24.Nf4 {[%clk 00:28:26]
[%emt 00:19:10]} 24...fxe4 {[%clk 00:14:29] [%emt 00:03:36]} 25.Nfe6 {[%clk
00:28:48] [%emt 00:00:08]} 25...Qf6 {[%clk 00:13:22] [%emt 00:01:38]} 26.h3 
{[%clk 00:27:45] [%emt 00:01:32]} 26...Rf7 {[%clk 00:11:58] [%emt 00:01:53]} 
27.Re1 {[%clk 00:17:05] [%emt 00:11:10]} 27...Qf2+ {[%clk 00:10:10] [%emt
00:02:19]} 28.Kh2 {[%clk 00:17:31] [%emt 00:00:04]} 28...Qxe1 {[%clk 00:10:31]
[%emt 00:00:08]} 29.Qe5 {[%clk 00:17:51] [%emt 00:00:10]} 29...Re7 {[%clk
00:07:19] [%emt 00:03:43]} 30.Nb3 {[%clk 00:15:06] [%emt 00:03:15]} 30...Qf2 
{[%clk 00:07:06] [%emt 00:00:43]} 0-1

[Event "FIDE Grand Swiss 2023"]
[Site "Villa Marina, Douglas, Isle of Man"]
[Date "2023.10.25"]
[Round "1.2"]
[White "Nakamura, Hikaru"]
[Black "Svane, Rasmus"]
[Result "1/2-1/2"]
[WhiteElo "2780"]
[BlackElo "2646"]
[EventDate "2023.10.25"]
[ECO "C54"]
[PlyCount "94"]
[BlackFideId "4657101"]
[TimeControl "40/100 + 20/50 + 15 + 30s/move"]
[WhiteFideId "2016192"]

1.e4 {[%clk 01:40:48] [%emt 00:00:11]} 1...e5 {[%clk 01:40:52] [%emt 00:00:08]} 
2.Nf3 {[%clk 01:41:01] [%emt 00:00:17]} 2...Nc6 {[%clk 01:41:15] [%emt
00:00:06]} 3.Bc4 {[%clk 01:41:23] [%emt 00:00:08]} 3...Nf6 {[%clk 01:41:33]
[%emt 00:00:13]} 4.d3 {[%clk 01:41:46] [%emt 00:00:06]} 4...Bc5 {[%clk 01:41:56]
[%emt 00:00:06]} 5.c3 {[%clk 01:42:12] [%emt 00:00:05]} 5...d6 {[%clk 01:42:00]
[%emt 00:00:26]} 6.O-O {[%clk 01:42:33] [%emt 00:00:08]} 6...h6 {[%clk 01:41:23]
[%emt 00:01:07]} 7.Re1 {[%clk 01:42:22] [%emt 00:00:41]} 7...O-O {[%clk
01:41:45] [%emt 00:00:08]} 8.h3 {[%clk 01:42:28] [%emt 00:00:25]} 8...Bb6 
{[%clk 01:41:45] [%emt 00:00:30]} 9.Nbd2 {[%clk 01:35:34] [%emt 00:07:23]} 
9...Ne7 {[%clk 01:41:10] [%emt 00:01:05]} 10.Bb3 {[%clk 01:31:59] [%emt
00:04:06]} 10...c6 {[%clk 01:37:59] [%emt 00:03:40]} 11.d4 {[%clk 01:29:27]
[%emt 00:03:03]} 11...Ng6 {[%clk 01:36:22] [%emt 00:02:07]} 12.Bc2 {[%clk
01:29:46] [%emt 00:00:11]} 12...Re8 {[%clk 01:34:58] [%emt 00:01:55]} 13.a4 
{[%clk 01:23:39] [%emt 00:06:37]} 13...a5 {[%clk 01:19:34] [%emt 00:15:53]} 
14.Nf1 {[%clk 01:17:34] [%emt 00:06:35]} 14...d5 {[%clk 01:18:11] [%emt
00:01:53]} 15.exd5 {[%clk 01:16:17] [%emt 00:01:47]} 15...e4 {[%clk 01:13:11]
[%emt 00:05:29]} 16.N3d2 {[%clk 01:14:55] [%emt 00:01:52]} 16...cxd5 {[%clk
01:09:41] [%emt 00:04:00]} 17.f3 {[%clk 01:15:19] [%emt 00:00:07]} 17...exf3 
{[%clk 01:09:28] [%emt 00:00:43]} 18.Rxe8+ {[%clk 01:15:18] [%emt 00:00:31]} 
18...Qxe8 {[%clk 01:09:42] [%emt 00:00:15]} 19.Qxf3 {[%clk 01:15:07] [%emt
00:00:41]} 19...Qc6 {[%clk 01:01:52] [%emt 00:08:20]} 20.Ne3 {[%clk 01:09:07]
[%emt 00:06:30]} 20...Bd7 {[%clk 00:56:16] [%emt 00:06:07]} 21.Ndf1 {[%clk
00:43:12] [%emt 00:26:24]} 21...Re8 {[%clk 00:53:22] [%emt 00:03:24]} 22.Ng3 
{[%clk 00:34:30] [%emt 00:09:12]} 22...Bc7 {[%clk 00:43:49] [%emt 00:10:03]} 
23.Qf2 {[%clk 00:23:40] [%emt 00:11:20]} 23...Bxg3 {[%clk 00:24:22] [%emt
00:19:57]} 24.Qxg3 {[%clk 00:24:02] [%emt 00:00:08]} 24...Ne4 {[%clk 00:24:33]
[%emt 00:00:18]} 25.Bxe4 {[%clk 00:15:41] [%emt 00:08:51]} 25...Rxe4 {[%clk
00:22:19] [%emt 00:02:44]} 26.Nf1 {[%clk 00:15:53] [%emt 00:00:18]} 26...f5 
{[%clk 00:17:01] [%emt 00:05:48]} 27.Nd2 {[%clk 00:05:48] [%emt 00:10:36]} 
27...f4 {[%clk 00:15:46] [%emt 00:01:45]} 28.Qf2 {[%clk 00:06:06] [%emt
00:00:12]} 28...Re8 {[%clk 00:08:58] [%emt 00:07:18]} 29.Nf3 {[%clk 00:06:23]
[%emt 00:00:13]} 29...Bf5 {[%clk 00:07:44] [%emt 00:01:43]} 30.h4 {[%clk
00:05:24] [%emt 00:01:29]} 30...Bg4 {[%clk 00:06:20] [%emt 00:01:53]} 31.Ne5 
{[%clk 00:05:45] [%emt 00:00:09]} 31...Nxe5 {[%clk 00:05:43] [%emt 00:01:08]} 
32.dxe5 {[%clk 00:06:14] [%emt 00:00:01]} 32...Rxe5 {[%clk 00:04:01] [%emt
00:02:11]} 33.Bxf4 {[%clk 00:06:17] [%emt 00:00:29]} 33...Re2 {[%clk 00:04:22]
[%emt 00:00:08]} 34.Qg3 {[%clk 00:06:24] [%emt 00:00:23]} 34...Bf5 {[%clk
00:03:25] [%emt 00:01:26]} 35.Rf1 {[%clk 00:06:05] [%emt 00:00:50]} 35...Be4 
{[%clk 00:03:03] [%emt 00:00:52]} 36.Rf2 {[%clk 00:06:30] [%emt 00:00:04]} 
36...Rxf2 {[%clk 00:03:03] [%emt 00:00:31]} 37.Qxf2 {[%clk 00:05:15] [%emt
00:01:45]} 37...Qxa4 {[%clk 00:03:04] [%emt 00:00:29]} 38.Be5 {[%clk 00:05:05]
[%emt 00:00:40]} 38...Qd7 {[%clk 00:01:16] [%emt 00:02:18]} 39.Qf4 {[%clk
00:05:05] [%emt 00:00:31]} 39...b5 {[%clk 00:01:15] [%emt 00:00:30]} 40.Kh2 
{[%clk 00:05:09] [%emt 00:00:26]} 40...Kh7 {[%clk 00:00:56] [%emt 00:00:49]} 
41.Bc7 {[%clk 00:05:23] [%emt 00:00:17]} 41...a4 {[%clk 00:48:58] [%emt
00:02:27]} 42.Be5 {[%clk 00:55:39] [%emt 00:00:13]} 42...Qe7 {[%clk 00:37:36]
[%emt 00:11:53]} 43.Bd4 {[%clk 00:53:22] [%emt 00:02:48]} 43...b4 {[%clk
00:35:58] [%emt 00:02:08]} 44.cxb4 {[%clk 00:53:40] [%emt 00:00:11]} 44...Qxb4 
{[%clk 00:36:13] [%emt 00:00:16]} 45.Qe5 {[%clk 00:53:02] [%emt 00:01:08]} 
45...Qb7 {[%clk 00:35:49] [%emt 00:00:53]} 46.Qf4 {[%clk 00:52:16] [%emt
00:01:16]} 46...Qd7 {[%clk 00:35:25] [%emt 00:00:53]} 47.Bc3 {[%clk 00:52:22]
[%emt 00:00:25]} 47...Qf5 {[%clk 00:33:14] [%emt 00:02:41]} 1/2-1/2

[Event "FIDE Grand Swiss 2023"]
[Site "Villa Marina, Douglas, Isle of Man"]
[Date "2023.10.25"]
[Round "1.3"]
[White "Ponomariov, Ruslan"]
[Black "Firouzja, Alireza"]
[Result "1/2-1/2"]
[WhiteElo "2641"]
[BlackElo "2777"]
[EventDate "2023.10.25"]
[ECO "A29"]
[PlyCount "63"]
[BlackFideId "12573981"]
[TimeControl "40/100 + 20/50 + 15 + 30s/move"]
[WhiteFideId "14103320"]

1.c4 {[%clk 01:40:57] [%emt 00:00:02]} 1...e5 {[%clk 01:40:24] [%emt 00:00:36]} 
2.Nc3 {[%clk 01:41:12] [%emt 00:00:14]} 2...Nf6 {[%clk 01:40:41] [%emt
00:00:13]} 3.Nf3 {[%clk 01:41:27] [%emt 00:00:16]} 3...Nc6 {[%clk 01:41:03]
[%emt 00:00:08]} 4.g3 {[%clk 01:41:21] [%emt 00:00:35]} 4...d5 {[%clk 01:38:28]
[%emt 00:03:05]} 5.cxd5 {[%clk 01:41:43] [%emt 00:00:08]} 5...Nxd5 {[%clk
01:38:54] [%emt 00:00:04]} 6.Bg2 {[%clk 01:41:59] [%emt 00:00:14]} 6...Nb6 
{[%clk 01:39:16] [%emt 00:00:09]} 7.O-O {[%clk 01:41:31] [%emt 00:00:58]} 
7...Be7 {[%clk 01:39:20] [%emt 00:00:25]} 8.d3 {[%clk 01:40:12] [%emt 00:01:49]} 
8...O-O {[%clk 01:39:31] [%emt 00:00:19]} 9.Be3 {[%clk 01:39:54] [%emt
00:00:48]} 9...Re8 {[%clk 01:33:16] [%emt 00:06:46]} 10.Rc1 {[%clk 01:37:44]
[%emt 00:02:40]} 10...Bf8 {[%clk 01:32:43] [%emt 00:01:04]} 11.d4 {[%clk
01:34:53] [%emt 00:03:20]} 11...exd4 {[%clk 01:28:44] [%emt 00:04:29]} 12.Nxd4 
{[%clk 01:34:27] [%emt 00:00:55]} 12...Nxd4 {[%clk 01:28:14] [%emt 00:01:01]} 
13.Bxd4 {[%clk 01:34:13] [%emt 00:00:43]} 13...c6 {[%clk 01:27:41] [%emt
00:01:02]} 14.Qd3 {[%clk 01:24:06] [%emt 00:10:38]} 14...Be6 {[%clk 01:17:14]
[%emt 00:10:58]} 15.Rfd1 {[%clk 01:19:40] [%emt 00:04:55]} 15...Qg5 {[%clk
01:17:31] [%emt 00:00:13]} 16.h4 {[%clk 00:53:21] [%emt 00:26:49]} 16...Qa5 
{[%clk 01:10:57] [%emt 00:07:05]} 17.Qc2 {[%clk 00:48:48] [%emt 00:05:03]} 
17...Rad8 {[%clk 01:10:36] [%emt 00:00:51]} 18.a3 {[%clk 00:48:43] [%emt
00:00:35]} 18...Rd7 {[%clk 01:03:11] [%emt 00:07:55]} 19.Ne4 {[%clk 00:40:41]
[%emt 00:08:31]} 19...Bf5 {[%clk 00:51:17] [%emt 00:12:24]} 20.b4 {[%clk
00:31:47] [%emt 00:09:24]} 20...Qb5 {[%clk 00:47:45] [%emt 00:04:03]} 21.Bc5 
{[%clk 00:28:50] [%emt 00:03:28]} 21...Bxc5 {[%clk 00:37:41] [%emt 00:10:33]} 
22.bxc5 {[%clk 00:28:47] [%emt 00:00:33]} 22...Nd5 {[%clk 00:37:30] [%emt
00:00:40]} 23.e3 {[%clk 00:24:25] [%emt 00:04:52]} 23...Qa5 {[%clk 00:33:13]
[%emt 00:04:47]} 24.Rd4 {[%clk 00:16:08] [%emt 00:08:47]} 24...Qxa3 {[%clk
00:15:42] [%emt 00:18:02]} 25.Ra4 {[%clk 00:10:43] [%emt 00:05:55]} 25...Nxe3 
{[%clk 00:15:50] [%emt 00:00:22]} 26.fxe3 {[%clk 00:11:07] [%emt 00:00:06]} 
26...Qxe3+ {[%clk 00:16:13] [%emt 00:00:07]} 27.Kh2 {[%clk 00:11:33] [%emt
00:00:04]} 27...Kf8 {[%clk 00:05:37] [%emt 00:11:06]} 28.Rf1 {[%clk 00:07:56]
[%emt 00:04:06]} 28...Bxe4 {[%clk 00:04:33] [%emt 00:01:36]} 29.Rxe4 {[%clk
00:08:18] [%emt 00:00:07]} 29...Rxe4 {[%clk 00:04:56] [%emt 00:00:07]} 30.Qxe4 
{[%clk 00:08:40] [%emt 00:00:07]} 30...Qxe4 {[%clk 00:05:20] [%emt 00:00:07]} 
31.Bxe4 {[%clk 00:09:05] [%emt 00:00:05]} 31...g6 {[%clk 00:05:25] [%emt
00:00:25]} 32.g4 {[%clk 00:07:42] [%emt 00:01:52]} 1/2-1/2

[Event "FIDE Grand Swiss 2023"]
[Site "Villa Marina, Douglas, Isle of Man"]
[Date "2023.10.25"]
[Round "1.4"]
[White "Giri, Anish"]
[Black "Sadhwani, Raunak"]
[Result "1/2-1/2"]
[WhiteElo "2760"]
[BlackElo "2641"]
[EventDate "2023.10.25"]
[ECO "D02"]
[PlyCount "76"]
[BlackFideId "35093487"]
[TimeControl "40/100 + 20/50 + 15 + 30s/move"]
[WhiteFideId "24116068"]

1.Nf3 {[%clk 01:40:56] [%emt 00:00:02]} 1...d5 {[%clk 01:40:42] [%emt 00:00:18]} 
2.d4 {[%clk 01:41:21] [%emt 00:00:06]} 2...Nf6 {[%clk 01:41:05] [%emt 00:00:07]} 
3.Bf4 {[%clk 01:41:47] [%emt 00:00:04]} 3...c5 {[%clk 01:40:40] [%emt 00:00:55]} 
4.e3 {[%clk 01:41:50] [%emt 00:00:27]} 4...Nc6 {[%clk 01:41:05] [%emt 00:00:06]} 
5.h3 {[%clk 01:42:10] [%emt 00:00:09]} 5...e6 {[%clk 01:29:20] [%emt 00:12:15]} 
6.Bd3 {[%clk 01:42:07] [%emt 00:00:32]} 6...Bd6 {[%clk 01:28:45] [%emt
00:01:05]} 7.dxc5 {[%clk 01:42:31] [%emt 00:00:07]} 7...Bxc5 {[%clk 01:28:21]
[%emt 00:00:54]} 8.O-O {[%clk 01:42:26] [%emt 00:00:35]} 8...Bd6 {[%clk
01:24:06] [%emt 00:04:45]} 9.Nc3 {[%clk 01:42:09] [%emt 00:00:46]} 9...a6 
{[%clk 01:04:46] [%emt 00:19:51]} 10.Re1 {[%clk 01:31:26] [%emt 00:11:12]} 
10...Bb8 {[%clk 01:01:41] [%emt 00:03:35]} 11.Bxb8 {[%clk 01:17:00] [%emt
00:14:57]} 11...Rxb8 {[%clk 01:01:22] [%emt 00:00:49]} 12.e4 {[%clk 00:56:19]
[%emt 00:21:11]} 12...d4 {[%clk 01:00:15] [%emt 00:01:37]} 13.Ne2 {[%clk
00:55:34] [%emt 00:01:15]} 13...e5 {[%clk 01:00:31] [%emt 00:00:14]} 14.c3 
{[%clk 00:52:34] [%emt 00:03:29]} 14...dxc3 {[%clk 01:00:43] [%emt 00:00:19]} 
15.Nxc3 {[%clk 00:52:59] [%emt 00:00:06]} 15...Be6 {[%clk 00:55:58] [%emt
00:05:15]} 16.Qe2 {[%clk 00:49:11] [%emt 00:04:18]} 16...O-O {[%clk 00:39:10]
[%emt 00:17:18]} 17.Rad1 {[%clk 00:48:39] [%emt 00:01:01]} 17...Qa5 {[%clk
00:33:22] [%emt 00:06:18]} 18.Bc4 {[%clk 00:43:18] [%emt 00:05:51]} 18...Rbd8 
{[%clk 00:24:31] [%emt 00:09:20]} 19.Bxe6 {[%clk 00:42:27] [%emt 00:01:22]} 
19...fxe6 {[%clk 00:24:57] [%emt 00:00:04]} 20.Qc4 {[%clk 00:42:37] [%emt
00:00:20]} 20...Rfe8 {[%clk 00:25:14] [%emt 00:00:14]} 21.Rxd8 {[%clk 00:33:08]
[%emt 00:09:58]} 21...Qxd8 {[%clk 00:25:41] [%emt 00:00:03]} 22.b4 {[%clk
00:32:39] [%emt 00:00:59]} 22...Qd6 {[%clk 00:22:05] [%emt 00:04:05]} 23.b5 
{[%clk 00:29:13] [%emt 00:03:56]} 23...Nd4 {[%clk 00:19:20] [%emt 00:03:16]} 
24.Nxd4 {[%clk 00:29:28] [%emt 00:00:15]} 24...Qxd4 {[%clk 00:09:33] [%emt
00:10:17]} 25.Qb3 {[%clk 00:27:11] [%emt 00:02:47]} 25...h6 {[%clk 00:07:05]
[%emt 00:02:59]} 26.bxa6 {[%clk 00:21:39] [%emt 00:06:02]} 26...bxa6 {[%clk
00:07:24] [%emt 00:00:10]} 27.Re3 {[%clk 00:19:07] [%emt 00:03:02]} 27...Kh7 
{[%clk 00:07:01] [%emt 00:00:53]} 28.Qb7 {[%clk 00:18:18] [%emt 00:01:18]} 
28...Qd6 {[%clk 00:06:57] [%emt 00:00:35]} 29.Rf3 {[%clk 00:13:54] [%emt
00:04:53]} 29...Re7 {[%clk 00:06:59] [%emt 00:00:29]} 30.Qb1 {[%clk 00:13:07]
[%emt 00:01:16]} 30...Rd7 {[%clk 00:07:09] [%emt 00:00:20]} 31.g3 {[%clk
00:12:33] [%emt 00:01:05]} 31...Qd4 {[%clk 00:06:33] [%emt 00:01:06]} 32.Re3 
{[%clk 00:08:16] [%emt 00:04:46]} 32...Qc4 {[%clk 00:05:53] [%emt 00:01:11]} 
33.Qf1 {[%clk 00:04:48] [%emt 00:03:58]} 33...Qc6 {[%clk 00:05:52] [%emt
00:00:30]} 34.Qe2 {[%clk 00:04:59] [%emt 00:00:19]} 34...Rd4 {[%clk 00:05:59]
[%emt 00:00:23]} 35.Kg2 {[%clk 00:05:02] [%emt 00:00:27]} 35...Rc4 {[%clk
00:05:52] [%emt 00:00:37]} 36.Qd3 {[%clk 00:05:28] [%emt 00:00:03]} 36...Rd4 
{[%clk 00:06:19] [%emt 00:00:04]} 37.Qe2 {[%clk 00:05:53] [%emt 00:00:05]} 
37...Rc4 {[%clk 00:06:47] [%emt 00:00:03]} 38.Qd3 {[%clk 00:06:14] [%emt
00:00:08]} 38...Rd4 {[%clk 00:07:13] [%emt 00:00:05]} 1/2-1/2

[Event "FIDE Grand Swiss 2023"]
[Site "Villa Marina, Douglas, Isle of Man"]
[Date "2023.10.25"]
[Round "1.5"]
[White "Mamedov, Rauf"]
[Black "Gukesh, D"]
[Result "1/2-1/2"]
[WhiteElo "2640"]
[BlackElo "2758"]
[EventDate "2023.10.25"]
[ECO "B85"]
[PlyCount "46"]
[BlackFideId "46616543"]
[TimeControl "40/100 + 20/50 + 15 + 30s/move"]
[WhiteFideId "13401653"]

1.e4 {[%clk 01:40:53] [%emt 00:00:06]} 1...c5 {[%clk 01:40:50] [%emt 00:00:10]} 
2.Nf3 {[%clk 01:41:18] [%emt 00:00:06]} 2...Nc6 {[%clk 01:41:12] [%emt
00:00:08]} 3.d4 {[%clk 01:40:53] [%emt 00:00:55]} 3...cxd4 {[%clk 01:41:33]
[%emt 00:00:09]} 4.Nxd4 {[%clk 01:41:17] [%emt 00:00:05]} 4...e6 {[%clk
01:40:23] [%emt 00:01:40]} 5.Nc3 {[%clk 01:41:33] [%emt 00:00:15]} 5...Qc7 
{[%clk 01:40:17] [%emt 00:00:37]} 6.Be3 {[%clk 01:41:51] [%emt 00:00:11]} 
6...a6 {[%clk 01:40:38] [%emt 00:00:09]} 7.Be2 {[%clk 01:42:14] [%emt 00:00:06]} 
7...Nf6 {[%clk 01:35:39] [%emt 00:05:30]} 8.O-O {[%clk 01:42:17] [%emt
00:00:26]} 8...Be7 {[%clk 01:35:34] [%emt 00:00:35]} 9.f4 {[%clk 01:42:44] [%emt
00:00:04]} 9...d6 {[%clk 01:35:55] [%emt 00:00:09]} 10.Qe1 {[%clk 01:42:57]
[%emt 00:00:16]} 10...O-O {[%clk 01:30:26] [%emt 00:06:00]} 11.Qg3 {[%clk
01:38:16] [%emt 00:05:11]} 11...Nxd4 {[%clk 01:27:35] [%emt 00:03:21]} 12.Bxd4 
{[%clk 01:37:55] [%emt 00:00:51]} 12...b5 {[%clk 01:27:58] [%emt 00:00:08]} 
13.a3 {[%clk 01:36:17] [%emt 00:02:08]} 13...Bb7 {[%clk 01:28:08] [%emt
00:00:20]} 14.Rad1 {[%clk 01:18:47] [%emt 00:17:59]} 14...Rad8 {[%clk 01:25:49]
[%emt 00:02:49]} 15.Kh1 {[%clk 01:08:22] [%emt 00:10:55]} 15...Bc6 {[%clk
01:24:07] [%emt 00:02:12]} 16.Bd3 {[%clk 01:06:54] [%emt 00:01:58]} 16...Rd7 
{[%clk 01:19:50] [%emt 00:04:47]} 17.Qh3 {[%clk 00:54:44] [%emt 00:12:40]} 
17...e5 {[%clk 01:14:45] [%emt 00:05:35]} 18.Be3 {[%clk 00:54:04] [%emt
00:01:09]} 18...Rb8 {[%clk 01:02:54] [%emt 00:12:22]} 19.fxe5 {[%clk 00:46:43]
[%emt 00:07:51]} 19...dxe5 {[%clk 01:03:10] [%emt 00:00:13]} 20.Bg5 {[%clk
00:47:10] [%emt 00:00:03]} 20...Ne8 {[%clk 00:55:10] [%emt 00:08:30]} 21.Be3 
{[%clk 00:40:16] [%emt 00:07:24]} 21...Nf6 {[%clk 00:46:03] [%emt 00:09:37]} 
22.Bg5 {[%clk 00:40:31] [%emt 00:00:15]} 22...Ne8 {[%clk 00:31:39] [%emt
00:14:55]} 23.Be3 {[%clk 00:40:31] [%emt 00:00:30]} 23...Nf6 {[%clk 00:31:50]
[%emt 00:00:19]} 1/2-1/2